Cogmind - Beta 12 @@@ ROGUE MODE // 2024.02.18 @ 04:05:31 Player: Treadwheel Result: Destroyed by P-80 Master with Gamma Rifle Performance ------------- Evolutions (9) 4500 Regions Visited (18) 3600 Robots Destroyed (177) 885 Value Destroyed (5114) 5114 Prototype IDs (49) 980 Alien Tech Used (0) 0 Bonus (558) 558 TOTAL SCORE: 15637 Bonus ------- High Alert Combat Kills 173 Follower Combat Kills 85 Aligned with FarCom 300 Cogmind --------- Core Integrity 0/1600 Matter 188/300 Energy 99/100 System Corruption 15% Temperature Cool (2) Movement Hovering (70) Location -1/Access Parts ------- > --- POWER (2) -------- (None) > --- PROPULSION (7) --- Gyrokinetic Inverter > --- UTILITY (13) ----- Experimental Coolant Injector Improved Signal Interpreter Advanced Signal Interpreter Advanced Terrain Scan Processor > --- WEAPON (3) ------- (None) > --- INVENTORY (5) ---- Advanced Datajack Peak State ------------ > --- POWER ------------ Micro Antimatter Reactor Improved Quantum Reactor > --- PROPULSION ------- Antigrav Array Improved Cesium-ion Thruster Cooled Field Propulsion Drive Field Propulsion Array Q-thruster > --- UTILITY ---------- Power Amplifier Experimental Coolant Injector Triangulator Improved Signal Interpreter Advanced Signal Interpreter Improved Terrain Scanner Advanced Terrain Scan Processor Advanced Transmission Jammer Hacking Suite Improved Recalibrator > --- WEAPON ----------- Heavy Pick Lance > --- INVENTORY -------- Micro Antimatter Reactor Gyrokinetic Inverter Advanced Coolant Injector Advanced Micro-nuke Launcher Advanced Datajack [Rating: 133] Favorites ----------- Power Improved Deuterium Engine Engine Improved Deuterium Engine Power Core Light Nuclear Core Reactor Micro Antimatter Reactor Propulsion Light Treads Treads Light Treads Leg Carbon-fiber Leg Wheel Wheel Hover Unit Antigrav Array Flight Unit Xenon Bombardment Thruster Utility Improved Signal Interpreter Device Weight Redist. System Storage High-capacity Storage Unit Processor Improved Signal Interpreter Hackware Makeshift Hacking Suite Protection Improved Medium Armor Plating Weapon Heavy Assault Cannon Energy Gun Medium Laser Energy Cannon Cooled Particle Cannon Ballistic Gun High-powered Shotgun Ballistic Cannon Heavy Assault Cannon Launcher Heavy Rocket Launcher Special Weapon Improved Plasma Cutter Impact Weapon Hammer Slashing Weapon Chainsword Piercing Weapon Spear Special Melee Weapon Datajack Build | -11 -10 -10 -9 -9 -9 -8 -8 -7 -7 -7 -7 -7 -6 -5 -4 -3 -2 -1 ------- Run | Jun Mat Min Mat Min Exi Min Mat Fac Was Fac Low Low Fac Fac Fac Res Res Acc Slots Evolved 18 | . . . 2 . . . 2 2 . . . . 2 2 2 2 2 2 Power 1 | . . . . . . . . . . . . . 1 . . . . . Propulsion 5 | . . . 1 . . . 1 1 . . . . 1 1 . . . . Utility 11 | . . . 1 . . . 1 . . . . . . 1 2 2 2 2 Weapon 1 | . . . . . . . . 1 . . . . . . . . . . Parts Attached 309 | 4 20 14 30 8 . 17 24 20 10 38 5 19 18 21 30 12 13 6 Power 30 | . 1 1 3 . . 2 3 1 . 1 . 2 1 5 7 1 1 1 Engine 13 | . 1 . 1 . . . 2 1 . 1 . . 1 3 3 . . . Core 12 | . . 1 2 . . 2 1 . . . . 2 . 2 2 . . . Reactor 5 | . . . . . . . . . . . . . . . 2 1 1 1 Propulsion 93 | 2 6 2 11 2 . 7 5 8 7 12 1 6 9 5 2 3 3 2 Treads 39 | 2 1 2 7 1 . 4 4 7 3 3 1 4 . . . . . . Leg 21 | . 2 . 2 . . 1 . . 1 9 . 2 2 1 . . . 1 Wheel 9 | . 3 . 2 1 . 2 1 . . . . . . . . . . . Hover 4 | . . . . . . . . . . . . . . . . 2 1 1 Flight 20 | . . . . . . . . 1 3 . . . 7 4 2 1 2 . Utility 112 | 2 6 6 7 4 . 6 6 6 3 15 2 5 8 8 14 5 9 . Device 62 | 1 2 4 4 1 . 4 1 4 1 6 1 2 4 5 13 3 6 . Storage 10 | 1 2 1 1 . . . . . 1 2 . 1 . . . 1 . . Processor 13 | . 1 . 1 1 . 1 3 . . 2 . . 1 . . 1 2 . Hackware 3 | . . . . . . . . . . . . . . 1 1 . 1 . Protection 24 | . 1 1 1 2 . 1 2 2 1 5 1 2 3 2 . . . . Artifact . | . . . . . . . . . . . . . . . . . . . Weapon 74 | . 7 5 9 2 . 2 10 5 . 10 2 6 . 3 7 3 . 3 Energy Gun 13 | . 3 . 2 . . . 4 1 . 3 . . . . . . . . Energy Cannon 8 | . . 2 . . . 1 . . . 3 1 . . . 1 . . . Ballistic Gun 9 | . 2 . 2 . . 1 1 1 . 1 . . . 1 . . . . Ballistic Cannon 9 | . 2 1 . . . . 4 . . 2 . . . . . . . . Launcher 8 | . . . . . . . 1 . . . 1 . . . 4 1 . 1 Special Weapon 1 | . . . . . . . . . . . . . . . . 1 . . Impact Weapon 10 | . . 2 5 1 . . . 2 . . . . . . . . . . Slashing Weapon 5 | . . . . . . . . 1 . 1 . 3 . . . . . . Piercing Weapon 10 | . . . . . . . . . . . . 3 . 2 2 1 . 2 Special Melee Weapon 1 | . . . . 1 . . . . . . . . . . . . . . Unidentified Prototypes 24 | . . 1 3 . . . 5 1 1 2 . . 1 3 2 3 2 . Corrupted Parts 3 | . . . . . . . . . 1 . . 2 . . . . . . System Corruption 22 | . . . . . . . . . 2 . . 20 . . . . . . Parts Lost 82 | . 3 . 4 . . 11 4 5 9 . 1 6 . . 16 4 3 16 Power 12 | . . . 2 . . 2 . 1 . . . 1 . . 4 . . 2 Propulsion 36 | . 3 . 2 . . 6 1 1 6 . 1 3 . . 5 1 1 6 Utility 21 | . . . . . . 2 3 1 1 . . 1 . . 4 2 2 5 Weapon 13 | . . . . . . 1 . 2 2 . . 1 . . 3 1 . 3 Highest Loss Streak 16 | . 1 . 2 . . 5 2 1 6 . 1 2 . . 6 2 2 16 To Critical Strikes 1 | . . . . . . . . . 1 . . . . . . . . . Average Slot Usage (%) 88 | . 100 100 99 100 100 98 90 90 48 66 80 87 98 97 77 59 72 55 Engine 5 | . 14 1 3 . . . 7 7 2 6 7 5 6 5 3 . . . Core 3 | . . 12 7 11 11 10 1 . . . . 1 6 5 5 . . . Treads 17 | . 14 14 23 22 22 28 35 22 10 11 11 15 5 . . . . . Leg 4 | . 3 . 1 . . . . . . 9 15 12 1 . . . . . Wheel 3 | . 10 14 7 11 11 3 . 7 2 . . . . . . . . . Flight 2 | . . . . . . . . . 1 . . . 31 38 23 8 11 10 Device 9 | . 8 9 21 18 22 9 3 2 3 4 7 9 10 9 14 22 25 16 Storage 7 | . 14 14 11 11 11 11 9 7 2 2 7 7 1 . . . . . Processor 6 | . . . . . . 10 13 15 10 8 7 7 6 5 5 9 12 12 Protection 4 | . 5 4 . 3 . 1 9 4 . 6 6 5 6 6 3 . . . Energy Gun 2 | . 15 2 . . . . . 10 . 2 . . . . . 1 . . Energy Cannon 2 | . . 10 . . . 9 . . . 3 6 2 . . . . . . Ballistic Gun 1 | . 5 . . . . 10 . 4 . . . . . . . . . . Ballistic Cannon 4 | . 7 12 . . . . 8 . . 6 7 2 . . . . . . Impact Weapon 3 | . . 2 20 21 22 1 . 4 6 . . . . . . . . . Slashing Weapon 1 | . . . . . . . . . 5 . . 5 13 5 2 . . . Piercing Weapon 1 | . . . . . . . . . . . . 9 6 10 8 7 7 3 Naked Turns . | . . . . . . . . . . . . . . . . . . . Heaviest Build 114 | 19 36 41 60 60 56 58 64 62 62 114 111 112 72 38 50 21 28 25 Greatest Support 130 | 40 40 10 62 16 16 63 86 28 70 96 96 130 130 43 44 52 29 30 Greatest Overweight (x) 7 | . 3 4 4 4 3 5 1 2 7 2 1 1 2 . 1 . . 4 Average Overweight (x) . | . 1 3 3 3 3 . . 1 . . 1 . . . . . . . Largest Inventory Capacity 25 | 8 15 15 20 20 20 20 20 20 20 25 25 25 20 5 5 5 5 5 Average Capacity 17 | 8 12 15 18 20 20 20 20 20 11 11 25 22 9 5 5 5 5 5 Most Carried 25 | 8 15 15 20 20 20 20 20 20 20 21 25 25 19 5 5 5 5 5 Average Carried 15 | 6 11 14 17 19 20 16 19 19 9 7 22 21 8 4 4 4 4 4 Final Capacity 25 | 8 15 15 20 20 20 20 20 20 5 25 25 20 20 5 5 5 5 5 Final Carried 25 | 8 15 15 20 20 20 18 20 20 2 20 25 19 17 5 5 5 5 1 Class Distribution -------------------- 62% | Mutant 16% | Skirmisher 5% | Tank 4% | Sprinter Dominant Class ---------------- Mutant | -10/Materials Mutant | -10/Mines Mutant | -9/Materials Mutant | -9/Mines Mutant | -9/Exiles Skirmisher | -8/Mines Mutant | -8/Materials Skirmisher | -7/Factory Mutant | -7/Waste Skirmisher | -7/Factory Mutant | -7/Lower Caves Mutant | -7/Lower Caves Sprinter | -6/Factory Sprinter | -5/Factory Hacker-Sprinter | -4/Factory Infiltrator-Mutant | -3/Research Infiltrator-Mutant | -2/Research Mutant | -1/Access Resources | -11 -10 -10 -9 -9 -9 -8 -8 -7 -7 -7 -7 -7 -6 -5 -4 -3 -2 -1 ----------- Run | Jun Mat Min Mat Min Exi Min Mat Fac Was Fac Low Low Fac Fac Fac Res Res Acc Matter Collected 4617 | 240 329 156 291 80 . 259 713 459 65 472 423 244 . 296 175 298 74 43 Remotely 243 | . . . . . . . . . . 243 . . . . . . . . Salvage Created 5800 | 78 532 124 1221 132 . 454 558 1208 . 239 81 324 . 296 154 317 . 82 Parts 297 | 4 45 4 55 7 . 25 34 47 . 16 10 10 . 20 8 5 . 7 Haulers Intercepted 6 | . . . 2 . . . 1 1 . . . . . 1 1 . . . Recyclers Shooed 4 | . 1 . . . . . 1 2 . . . . . . . . . . Parts Field Recycled . | . . . . . . . . . . . . . . . . . . . Retrieved Matter . | . . . . . . . . . . . . . . . . . . . Parts Self-Destructed 16 | . . . . . . . . . . . 10 6 . . . . . . Prevented . | . . . . . . . . . . . . . . . . . . . Kills | -11 -10 -10 -9 -9 -9 -8 -8 -7 -7 -7 -7 -7 -6 -5 -4 -3 -2 -1 ------- Run | Jun Mat Min Mat Min Exi Min Mat Fac Was Fac Low Low Fac Fac Fac Res Res Acc Combat Hostiles Destroyed 125 | . 14 5 30 3 . 14 13 20 . 5 8 8 . 2 . . . 3 Melee 42 | . . 3 20 2 . . . 6 . . . 8 . 2 . . . 1 Guns 29 | . 12 . . . . 8 . 9 . . . . . . . . . . Cannons 30 | . 2 . 1 . . 5 12 . . 5 5 . . . . . . . AOE 8 | . . . 1 . . . 1 1 . . 3 . . . . . . 2 Classes Destroyed 14 | 2 4 . 3 1 . 1 . 2 . 1 . . . . . . . . Worker 8 | . . . . . . . . 3 . . . . . 1 2 . . 2 Builder 11 | . 3 . . . . 1 1 2 . . . . . . . . . 4 Tunneler 7 | 1 . . . 1 . 1 . 1 . 1 . . . 1 1 . . . Hauler 6 | . . . 2 . . . 1 1 . . . . . 1 1 . . . Recycler 10 | 1 . . 1 . . . . 6 . . . . . . . 2 . . Operator 2 | . . . 1 . . . . . . . . . . 1 . . . . Watcher 8 | . 3 . 1 . . . 3 . . . . . . 1 . . . . Swarmer 41 | . 6 3 10 . . 7 . 3 . . 8 4 . . . . . . Grunt 57 | . 8 2 11 2 . 5 8 15 . 2 . 3 . 1 . . . . Brawler 3 | . . . . 1 . . 2 . . . . . . . . . . . Duelist 2 | . . . . . . . . . . 1 . 1 . . . . . . Sentry 13 | . . . 9 . . . 3 . . 1 . . . . . . . . Hunter 4 | . . . . . . 2 . 1 . . . . . 1 . . . . Programmer 5 | . . . . . . . . 1 . 1 . . . . . . . 3 Best Kill Streak 9 | 2 5 3 6 3 . 9 3 9 . 3 4 4 . 2 2 2 . 9 Combat Bots Only 9 | . 5 5 6 3 . 8 3 9 . 3 4 4 . 1 . . . 3 Max Kills in Single Turn 5 | 1 1 1 1 1 . 2 1 5 . 2 2 1 . 1 1 1 . 3 Gunslinging . | . . . . . . . . . . . . . . . . . . . Exploded 2 | . . . 1 . . . 1 1 . . 1 . . . . . . 2 Melee 1 | . . 1 1 1 . . . 1 . . . 1 . 1 . . . 1 Uniques/NPCs Destroyed . | . . . . . . . . . . . . . . . . . . . Combat | -11 -10 -10 -9 -9 -9 -8 -8 -7 -7 -7 -7 -7 -6 -5 -4 -3 -2 -1 -------- Run | Jun Mat Min Mat Min Exi Min Mat Fac Was Fac Low Low Fac Fac Fac Res Res Acc Damage Taken 14107 | . 625 398 1155 121 . 1031 632 1716 398 380 796 1023 190 333 1240 454 456 3159 Core 3324 | . 100 57 181 7 . 179 49 154 235 61 39 97 . 77 262 62 144 1620 Absorbed by Shields 578 | . . . 348 28 . 112 . 62 28 . . . . . . . . . Redirected to Shielding 192 | . . . . . . . 49 . . . 35 . . 15 93 . . . Regen/Repaired (Parts) 720 | . . . 103 . . . . . . 593 . . . . 24 . . . Core Remaining (%) 70 | 100 . 37 . . . 8 91 . . . . 16 100 92 77 95 90 . Volleys Fired 242 | 3 64 4 2 . . 35 62 34 . 13 17 1 . . 3 . . 4 Largest 3 | 2 2 2 1 . . 2 2 3 . 2 2 2 . . 1 . . 1 Hottest 144 | 100 91 95 23 . . 85 85 144 . 135 99 90 . . 39 . . 30 Shots Fired 418 | 6 128 8 2 . . 64 63 85 . 28 24 3 . . 3 . . 4 Gun 245 | 6 118 . 2 . . 32 1 85 . 1 . . . . . . . . Cannon 163 | . 10 8 . . . 32 62 . . 27 21 3 . . . . . . Launcher 10 | . . . . . . . . . . . 3 . . . 3 . . 4 Special . | . . . . . . . . . . . . . . . . . . . Kinetic 233 | . 64 4 2 . . 32 62 34 . 14 19 2 . . . . . . Thermal 175 | 6 64 4 . . . 32 1 51 . 14 2 1 . . . . . . Explosive 10 | . . . . . . . . . . . 3 . . . 3 . . 4 Electromagnetic . | . . . . . . . . . . . . . . . . . . . Robot Hit Streak 13 | 2 8 . 2 . . 8 6 13 . 8 2 3 . . . . . 1 Robot Miss Streak 9 | 1 9 2 . . . 6 2 7 . 3 4 1 . . . . . 1 Penetration Max 1 | . . . . . . . . . . 1 . . . . . . . . Secondary Targets 3 | . 2 . . . . . . 1 . . . . . . . . . . Max Gunslinging Chain 1 | . 1 . . . . . . 1 . . . . . . . . . . Shots Hit Robots 440 | 4 66 16 78 11 . 53 38 100 3 14 8 18 . 13 9 6 . 3 Core Hits 219 | 3 29 2 18 2 . 26 16 61 . 9 9 10 . 6 8 1 . 19 Critical Kills 5 | . . 2 3 . . . . . . . . . . . . . . . Critical Parts Destroyed 24 | . 1 2 14 1 . 2 . 4 . . . . . . . . . . Critical Strikes 46 | . 3 4 17 1 . 2 4 8 . 1 2 1 . 2 1 . . . Burn 6 | . 2 . . . . . . 4 . . . . . . . . . . Destroy 1 | . 1 . . . . . . . . . . . . . . . . . Blast 7 | . . . . . . . 4 . . 1 2 . . . . . . . Smash 28 | . . 4 17 1 . 2 . 4 . . . . . . . . . . Impale 4 | . . . . . . . . . . . . 1 . 2 1 . . . Melee Attacks 265 | . . 25 103 16 . 13 . 37 3 . . 25 . 19 11 8 . 5 Impact 195 | . . 25 103 14 . 13 . 37 3 . . . . . . . . . Slashing 16 | . . . . . . . . . . . . 14 . 1 1 . . . Piercing 52 | . . . . . . . . . . . . 11 . 18 10 8 . 5 Sneak Attacks 21 | . . . 4 1 . 1 . 3 . . . . . 4 7 1 . . Combat Hostiles 1 | . . . . . . . . . . . . . . 1 . . . . Follow-up Attacks 38 | . . 5 18 2 . . . 3 1 . . 4 . 1 2 2 . . Damage Inflicted 15784 | 50 818 514 2337 280 . 1212 1999 3407 112 658 562 603 . 603 702 327 . 1600 Guns 2429 | 50 710 . 32 . . 442 . 1195 . . . . . . . . . . Cannons 3548 | . 102 . . . . 485 1885 . . 640 352 84 . . . . . . Explosions 2618 | . . . . . . . 114 711 . . 210 . . . 35 . . 1548 Melee 7154 | . . 514 2305 280 . 285 . 1490 112 . . 519 . 603 667 327 . 52 Ramming 35 | . 6 . . . . . . 11 . 18 . . . . . . . . Kinetic 3983 | . 391 . 32 . . 442 1861 451 . 425 325 56 . . . . . . Thermal 2705 | 50 421 . . . . 485 138 1341 . 215 27 28 . . . . . . Explosive 1885 | . . . . . . . . 114 . . 210 . . . 13 . . 1548 Electromagnetic 22 | . . . . . . . . . . . . . . . 22 . . . Impact 4986 | . . 514 2305 280 . 285 . 1490 112 . . . . . . . . . Slashing 543 | . . . . . . . . . . . . 409 . 74 60 . . . Piercing 1625 | . . . . . . . . . . . . 110 . 529 607 327 . 52 Highest Corruption 24 | . . . . . . . 9 2 18 18 4 24 . . 4 2 3 15 Average Corruption 8 | . . . . . . . 8 2 12 12 4 13 . . 2 1 2 4 Corruption Purged 15 | . . . . . . . . . . 15 . . . . . . . . Corruption Blocked . | . . . . . . . . . . . . . . . . . . . Effects 241 | . . . . . . . 39 15 9 55 44 65 . . 6 1 4 3 Message Errors 75 | . . . . . . . 11 3 3 22 9 23 . . . . 2 2 Matter Fused 52 | . . . . . . . 9 5 2 11 9 9 . . 4 1 1 1 Heat Flow Errors 29 | . . . . . . . 5 1 . 4 8 11 . . . . . . Energy Discharges 29 | . . . . . . . 4 1 2 6 7 9 . . . . . . Parts Rejected 2 | . . . . . . . 1 . 1 . . . . . . . . . Parts Fused 3 | . . . . . . . 1 . . 1 . . . . 1 . . . Data Loss (minor) 27 | . . . . . . . 4 2 . 5 6 9 . . 1 . . . Data Loss (major) 7 | . . . . . . . 2 . . 3 . 2 . . . . . . Misfires 8 | . . . . . . . 1 . . 2 4 1 . . . . . . Alerts 4 | . . . . . . . . 1 . 1 . 1 . . . . 1 . Misdirections 1 | . . . . . . . . . 1 . . . . . . . . . Weapon Failures 4 | . . . . . . . 1 2 . . 1 . . . . . . . Overload Shots . | . . . . . . . . . . . . . . . . . . . Overflow Damage 2381 | . . 110 708 42 . 61 273 623 . 53 58 9 . 127 92 106 . 119 Projectiles 453 | . . . 50 . . 19 273 . . 53 58 . . . . . . . Explosions 385 | . . . . . . . . 283 . . . . . . 5 . . 97 Melee 1543 | . . 110 658 42 . 42 . 340 . . . 9 . 127 87 106 . 22 Knockbacks 33 | . 2 2 9 1 . 2 7 7 . 2 1 . . . . . . . Impact 19 | . . 2 8 1 . 1 . 7 . . . . . . . . . . Kinetic 12 | . 2 . . . . . 7 . . 2 1 . . . . . . . Secondary 2 | . . . 1 . . 1 . . . . . . . . . . . . Self-Inflicted Damage 525 | . 2 . . . . . . 254 . . 13 . . . 169 . . 87 Shots 12 | . . . . . . . . 3 . . 1 . . . 5 . . 3 Rammed 7 | . 2 . . . . . . 1 . 4 . . . . . . . . Targets Rammed 7 | . 2 . . . . . . 1 . 4 . . . . . . . . Kicked . | . . . . . . . . . . . . . . . . . . . Crushed . | . . . . . . . . . . . . . . . . . . . Highest Temperature 349 | 78 198 136 1 . . 126 254 349 . 297 252 276 306 335 186 . 193 . Average Temperature 72 | 33 51 54 1 . . 52 32 96 . 106 66 93 116 101 79 . 97 . Received Heat Transfer 2439 | . 258 117 359 23 . 284 216 390 . 123 . 306 69 81 195 9 9 . Effects 6 | . . . . . . . . 3 . . . 1 2 . . . . . Shutdowns 1 | . . . . . . . . 1 . . . . . . . . . . Energy Bleed 1 | . . . . . . . . . . . . 1 . . . . . . Interference 4 | . . . . . . . . 2 . . . . 2 . . . . . Siege Activations . | . . . . . . . . . . . . . . . . . . . Robots Corrupted . | . . . . . . . . . . . . . . . . . . . Combat Hostiles . | . . . . . . . . . . . . . . . . . . . Parts Fried 37 | . . 4 18 3 . . . 12 . . . . . . . . . . Impact Corruptions 58 | . . 8 31 2 . 3 . 14 . . . . . . . . . . Robots Melted . | . . . . . . . . . . . . . . . . . . . Combat Hostiles . | . . . . . . . . . . . . . . . . . . . Parts Melted 4 | . . . . . . 1 . 3 . . . . . . . . . . Heat Transferred 4964 | 148 1369 . . . . 777 87 2213 . 296 37 37 . . . . . . Parts Sabotaged . | . . . . . . . . . . . . . . . . . . . Parts Stolen . | . . . . . . . . . . . . . . . . . . . Parts Stripped . | . . . . . . . . . . . . . . . . . . . Power Chain Reactions 1 | . . . . . . . . . . . . . . . 1 . . . Missiles Intercepted . | . . . . . . . . . . . . . . . . . . . Alert | -11 -10 -10 -9 -9 -9 -8 -8 -7 -7 -7 -7 -7 -6 -5 -4 -3 -2 -1 ------- Run | Jun Mat Min Mat Min Exi Min Mat Fac Was Fac Low Low Fac Fac Fac Res Res Acc Peak Influence 687 | 10 361 150 322 144 . 320 180 687 218 184 . . 234 295 632 301 435 360 Initial 285 | . 6 . . 69 . . . 36 203 96 . . 41 121 78 285 111 260 Average 146 | 8 100 17 205 103 . 98 104 332 170 58 . . 90 174 324 209 191 276 Maximum Alert Level 2 | . 1 . 1 . . 1 . 2 1 . . . 1 1 2 1 2 1 Low Security (%) 73 | 100 75 100 39 100 . 83 100 32 68 100 . . 94 71 39 61 76 . Level 1 21 | . 24 . 60 . . 16 . 27 31 . . . 5 28 29 38 13 100 Level 2 5 | . . . . . . . . 39 . . . . . . 30 . 9 . Level 3 . | . . . . . . . . . . . . . . . . . . . Level 4 . | . . . . . . . . . . . . . . . . . . . Level 5 . | . . . . . . . . . . . . . . . . . . . High Security . | . . . . . . . . . . . . . . . . . . . Max Security . | . . . . . . . . . . . . . . . . . . . Squads Dispatched 45 | . 3 1 4 . . . 4 4 . 3 . . 2 5 8 3 6 2 Investigation 26 | . . 1 3 . . . 1 2 . 1 . . 1 3 8 1 4 1 Extermination 7 | . . . . . . . . 1 . 2 . . . 2 . 1 1 . Reinforcement 11 | . 3 . 1 . . . 3 . . . . . 1 . . 1 1 1 Assault . | . . . . . . . . . . . . . . . . . . . Garrison 1 | . . . . . . . . 1 . . . . . . . . . . Intercept . | . . . . . . . . . . . . . . . . . . . Searches Triggered . | . . . . . . . . . . . . . . . . . . . Construction Impeded 2 | . . . . . . . 1 . . . . . . . . . . 1 Haulers Reinforced . | . . . . . . . . . . . . . . . . . . . Active Scanning Responses . | . . . . . . . . . . . . . . . . . . . Cargo Convoy Interrupts . | . . . . . . . . . . . . . . . . . . . Stealth | -11 -10 -10 -9 -9 -9 -8 -8 -7 -7 -7 -7 -7 -6 -5 -4 -3 -2 -1 --------- Run | Jun Mat Min Mat Min Exi Min Mat Fac Was Fac Low Low Fac Fac Fac Res Res Acc Distress Signals 15 | . 3 . 4 . . . 1 3 . . . . 1 . 3 . . . Communications Jammed 8 | . . . . . . . . . . . . . . . 8 . . . Distress Signals 8 | . . . . . . . . . . . . . . . 8 . . . Times Spotted 305 | . 22 6 42 3 . 16 18 35 8 8 8 12 15 13 52 15 24 8 Peak Tracking Total 18 | . 5 5 6 3 . 7 3 7 6 3 4 4 7 4 18 11 15 8 Tactical Retreats 33 | . 1 1 2 . . 2 2 3 1 . . 2 2 4 10 . 3 . Traps | -11 -10 -10 -9 -9 -9 -8 -8 -7 -7 -7 -7 -7 -6 -5 -4 -3 -2 -1 ------- Run | Jun Mat Min Mat Min Exi Min Mat Fac Was Fac Low Low Fac Fac Fac Res Res Acc Traps Triggered 13 | . . . 2 . . . . 3 . 3 . . . . . 1 4 . Indirectly . | . . . . . . . . . . . . . . . . . . . Trap Hack Attempts . | . . . . . . . . . . . . . . . . . . . Triggered . | . . . . . . . . . . . . . . . . . . . Disarmed . | . . . . . . . . . . . . . . . . . . . Reprogrammed 6 | . . . . . . . . . . . . . . . 6 . . . Reused 1 | . . . . . . . . . . . . . . . 1 . . . Traps Extracted . | . . . . . . . . . . . . . . . . . . . Installed . | . . . . . . . . . . . . . . . . . . . Triggered 2 | . . . 1 . . . . . . . . . . . 1 . . . Machines | -11 -10 -10 -9 -9 -9 -8 -8 -7 -7 -7 -7 -7 -6 -5 -4 -3 -2 -1 ---------- Run | Jun Mat Min Mat Min Exi Min Mat Fac Was Fac Low Low Fac Fac Fac Res Res Acc Machines Disabled 20 | . . . 1 . . . 1 14 . . . . . . 4 . . . Max in Single Turn 6 | . . . 1 . . . 1 6 . . . . . . 3 . . . Machines Repaired . | . . . . . . . . . . . . . . . . . . . Machines Sabotaged . | . . . . . . . . . . . . . . . . . . . Overloaded Fab Kills . | . . . . . . . . . . . . . . . . . . . Hacking | -11 -10 -10 -9 -9 -9 -8 -8 -7 -7 -7 -7 -7 -6 -5 -4 -3 -2 -1 --------- Run | Jun Mat Min Mat Min Exi Min Mat Fac Was Fac Low Low Fac Fac Fac Res Res Acc Machines Accessed 81 | . 7 2 12 . 1 . 4 10 . 6 . . 4 9 12 7 5 2 Terminals 49 | . 5 1 7 . . . 3 5 . 3 . . 3 5 7 5 5 . Fabricators 4 | . . . . . . . . 2 . . . . . 1 . . . 1 Repair Stations 7 | . . . 1 . . . 1 . . 2 . . 1 . 2 . . . Recycling Units 10 | . 2 . 2 . . . . 1 . . . . . 2 2 1 . . Scanalyzers 4 | . . . 2 . . . . 1 . . . . . . 1 . . . Garrison Access 5 | . . . . . . . . 1 . 1 . . . 1 . 1 . 1 Total Hacks 242 | . 19 3 38 . 1 . 12 37 . 19 . . 15 29 39 15 11 4 Successful 131 | . 13 2 21 . 1 . 3 27 . 9 . . 7 16 26 5 1 . Failed 111 | . 6 1 17 . . . 9 10 . 10 . . 8 13 13 10 10 4 Catastrophic 24 | . 2 . 4 . . . 1 3 . 2 . . 1 2 2 2 4 1 Database Lockouts . | . . . . . . . . . . . . . . . . . . . Manual 111 | . 6 1 16 . 1 . 8 12 . 9 . . 10 17 15 9 3 4 Terminals 138 | . 14 2 23 . . . 8 11 . 10 . . 14 11 25 9 11 . Fabricators 15 | . . . . . . . . 7 . . . . . 6 . . . 2 Repair Stations 22 | . . . 5 . . . 4 . . 7 . . 1 . 5 . . . Recycling Units 30 | . 5 . 5 . . . . 2 . . . . . 8 7 3 . . Scanalyzers 22 | . . . 5 . . . . 15 . . . . . . 2 . . . Garrison Access 13 | . . . . . . . . 2 . 2 . . . 4 . 3 . 2 Terminal Hacks 45 | . 7 2 8 . 1 . . 3 . 2 . . 3 4 11 3 1 . Record 10 | . . . . . . . . 2 . . . . 2 2 3 1 . . Part Schematic 2 | . . . 1 . . . . . . . . . . 1 . . . . Robot Analysis 1 | . . . . . . . . . . 1 . . . . . . . . Prototype ID Bank 1 | . 1 . . . . . . . . . . . . . . . . . Open Door 1 | . . 1 . . . . . . . . . . . . . . . . Open DSF 1 | . . . . . . . . . . . . . . 1 . . . . Level Access Points 1 | . . . . . . . . . . . . . . . . . 1 . Branch Access Points 6 | . 1 . 1 . . . . . . 1 . . 1 . 1 1 . . Emergency Access Points 2 | . 1 . . . . . . . . . . . . . 1 . . . Terminal Index 1 | . . . 1 . . . . . . . . . . . . . . . Scanalyzer Index 2 | . 1 . 1 . . . . . . . . . . . . . . . Alert Level 1 | . 1 . . . . . . . . . . . . . . . . . Unreport Threat 6 | . 1 . 2 . . . . 1 . . . . . . 1 1 . . Locate Traps 5 | . 1 . 2 . . . . . . . . . . . 2 . . . Reprogram Traps 1 | . . . . . . . . . . . . . . . 1 . . . Zone Layout 3 | . . 1 . . . . . . . . . . . . 2 . . . EX-Prototype ID Bank 1 | . . . . . 1 . . . . . . . . . . . . . Fabricator Hacks 6 | . . . . . . . . 4 . . . . . 2 . . . . Network Status 2 | . . . . . . . . 2 . . . . . . . . . . Load Schematic 2 | . . . . . . . . 1 . . . . . 1 . . . . Build 2 | . . . . . . . . 1 . . . . . 1 . . . . Repair Station Hacks 12 | . . . 4 . . . . . . 4 . . . . 4 . . . Scan Component 6 | . . . 2 . . . . . . 2 . . . . 2 . . . Repair 5 | . . . 2 . . . . . . 2 . . . . 1 . . . Refit 1 | . . . . . . . . . . . . . . . 1 . . . Recycling Unit Hacks 13 | . 3 . . . . . . . . . . . . 4 5 1 . . Report Inventory 4 | . 1 . . . . . . . . . . . . 2 1 . . . Retrieve Matter 2 | . . . . . . . . . . . . . . . 2 . . . Retrieve Components 7 | . 2 . . . . . . . . . . . . 2 2 1 . . Scanalyzer 16 | . . . 4 . . . . 12 . . . . . . . . . . Insert Component 8 | . . . 2 . . . . 6 . . . . . . . . . . Analyze 8 | . . . 2 . . . . 6 . . . . . . . . . . Garrison Access Hacks . | . . . . . . . . . . . . . . . . . . . Unauthorized Hacks 39 | . 3 . 5 . . . 3 8 . 3 . . 4 6 6 1 . . Terminals 18 | . 1 . 3 . . . 2 3 . 2 . . 3 1 3 . . . Assimilate 6 | . 1 . 3 . . . . . . . . . . . 2 . . . Botnet 10 | . . . . . . . 2 2 . 2 . . 2 1 1 . . . Operators 2 | . . . . . . . . 1 . . . . 1 . . . . . Fabricators 4 | . . . . . . . . 2 . . . . . 2 . . . . Report 1 | . . . . . . . . . . . . . . 1 . . . . Liberate 3 | . . . . . . . . 2 . . . . . 1 . . . . Repair Stations 3 | . . . . . . . 1 . . . . . 1 . 1 . . . Mechanics 3 | . . . . . . . 1 . . . . . 1 . 1 . . . Recycling Units 10 | . 2 . 2 . . . . 1 . . . . . 2 2 1 . . Reject 10 | . 2 . 2 . . . . 1 . . . . . 2 2 1 . . Scanalyzers 1 | . . . . . . . . 1 . . . . . . . . . . Researchers 1 | . . . . . . . . 1 . . . . . . . . . . Garrison Access 3 | . . . . . . . . 1 . 1 . . . 1 . . . . Decoy 2 | . . . . . . . . 1 . 1 . . . . . . . . Reprogram 1 | . . . . . . . . . . . . . . 1 . . . . Data Cores Recovered 1 | . . . . . . . . . . . . . . 1 . . . . Used 1 | . . . . . . . . . . . . . . 1 . . . . Hacking Detections 76 | . 7 1 12 . . . 4 10 . 6 . . 4 7 11 7 5 2 Full Trace Events 28 | . 1 . 4 . . . 2 2 . 1 . . 1 3 8 1 4 1 Feedback Events 5 | . . . . . . . . . . . . . . . 3 . 1 1 Corruption 4 | . . . . . . . . . . . . . . . 2 . 1 1 Hackware Fried 1 | . . . . . . . . . . . . . . . 1 . . . Feedback Blocked . | . . . . . . . . . . . . . . . . . . . Robot Schematics Acquired . | . . . . . . . . . . . . . . . . . . . Robots Built . | . . . . . . . . . . . . . . . . . . . Authchips . | . . . . . . . . . . . . . . . . . . . Time . | . . . . . . . . . . . . . . . . . . . Total Robot Build Rating . | . . . . . . . . . . . . . . . . . . . Part Schematics Acquired 9 | . . . 3 . . . . 5 . . . . . 1 . . . . Parts Built 2 | . . . . . . . . 1 . . . . . 1 . . . . Authchips . | . . . . . . . . . . . . . . . . . . . Time 268 | . . . . . . . . 134 . . . . . 134 . . . . Total Part Build Rating 8 | . . . . . . . . 4 . . . . . 4 . . . . Parts Repaired 5 | . . . 2 . . . . . . 2 . . . . 1 . . . Time 192 | . . . 76 . . . . . . 94 . . . . 22 . . . Parts Recycled . | . . . . . . . . . . . . . . . . . . . Recycled Matter . | . . . . . . . . . . . . . . . . . . . Retrieved Matter . | . . . . . . . . . . . . . . . . . . . Retrieved Components 21 | . 12 . . . . . . . . . . . . 6 2 1 . . Parts Scanalyzed 8 | . . . 2 . . . . 6 . . . . . . . . . . Part Schematics Acquired 7 | . . . 2 . . . . 5 . . . . . . . . . . Parts Damaged 1 | . . . . . . . . 1 . . . . . . . . . . Bothacking | -11 -10 -10 -9 -9 -9 -8 -8 -7 -7 -7 -7 -7 -6 -5 -4 -3 -2 -1 ------------ Run | Jun Mat Min Mat Min Exi Min Mat Fac Was Fac Low Low Fac Fac Fac Res Res Acc Used RIF Installer . | . . . . . . . . . . . . . . . . . . . Robots Hacked . | . . . . . . . . . . . . . . . . . . . Non-combat . | . . . . . . . . . . . . . . . . . . . Combat . | . . . . . . . . . . . . . . . . . . . Robot Hacks Applied . | . . . . . . . . . . . . . . . . . . . Relay Couplers Released . | . . . . . . . . . . . . . . . . . . . Fabnet Peak Effective % . | . . . . . . . . . . . . . . . . . . . Robots Rewired . | . . . . . . . . . . . . . . . . . . . Allies Hacked 1 | . . . . . . . . . . 1 . . . . . . . . Hacks Repelled . | . . . . . . . . . . . . . . . . . . . Allies | -11 -10 -10 -9 -9 -9 -8 -8 -7 -7 -7 -7 -7 -6 -5 -4 -3 -2 -1 -------- Run | Jun Mat Min Mat Min Exi Min Mat Fac Was Fac Low Low Fac Fac Fac Res Res Acc Total Allies 5 | . . . . . . . . . 1 3 . . . . 1 . . . Largest Group 3 | . . . . . . . . . 1 3 . . . . 1 . . . Highest-Rated Group 93 | . . . . . . . . . 31 93 . . . . 10 . . . Highest-Rated Ally 31 | . . . . . . . . . 31 31 . . . . 10 . . . Total Orders . | . . . . . . . . . . . . . . . . . . . Ally Attacks 39 | . . . . . . . . . 15 24 . . . . . . . . Total Damage 701 | . . . . . . . . . 274 427 . . . . . . . . Kills 2 | . . . . . . . . . . 2 . . . . . . . . Allies Corrupted . | . . . . . . . . . . . . . . . . . . . Allies Melted . | . . . . . . . . . . . . . . . . . . . Intel | -11 -10 -10 -9 -9 -9 -8 -8 -7 -7 -7 -7 -7 -6 -5 -4 -3 -2 -1 ------- Run | Jun Mat Min Mat Min Exi Min Mat Fac Was Fac Low Low Fac Fac Fac Res Res Acc Robot Analysis Total 1 | . . . . . . . . . . 1 . . . . . . . . Derelict Logs Recovered 4 | . . 1 . . . . . . . . 1 2 . . . . . . Drone Launches . | . . . . . . . . . . . . . . . . . . . Drone Recoveries . | . . . . . . . . . . . . . . . . . . . Exploration | -11 -10 -10 -9 -9 -9 -8 -8 -7 -7 -7 -7 -7 -6 -5 -4 -3 -2 -1 ------------- Run | Jun Mat Min Mat Min Exi Min Mat Fac Was Fac Low Low Fac Fac Fac Res Res Acc Turns Passed 16927 | 54 1755 902 1775 398 388 1069 1633 1305 198 1490 2222 1800 308 514 385 328 259 144 Spaces Moved 11766 | 23 1114 617 850 224 267 573 759 725 202 691 902 935 492 1091 850 589 585 277 Core 134 | . . . . . . . . . 133 . . . . . . . . 1 Treads 4112 | 23 199 . 200 . . 436 749 . 13 621 902 935 34 . . . . . Legs 94 | . 9 . . . . . . . . 70 . . . . . . . 15 Wheels 3592 | . 906 617 650 224 267 137 10 725 56 . . . . . . . . . Hover 103 | . . . . . . . . . . . . . . . . 99 . 4 Flight 3731 | . . . . . . . . . . . . . 458 1091 850 490 585 257 Fastest Speed 21 | 160 95 125 125 145 145 110 115 115 50 120 240 160 25 21 22 34 32 32 Average Speed 117 | 160 129 128 151 149 145 157 159 127 88 179 240 180 35 21 28 37 33 41 Slowest Speed 400 | 160 240 140 225 150 145 240 160 130 400 260 240 250 201 25 99 56 34 250 Overloaded Moves . | . . . . . . . . . . . . . . . . . . . Propulsion Burnouts . | . . . . . . . . . . . . . . . . . . . Robots Hopped 29 | . . . . . . . . . . . . . . 2 6 11 9 1 Cave-ins Triggered . | . . . . . . . . . . . . . . . . . . . Exploration Rate (%) 48 | 2 98 94 72 37 69 90 48 19 83 17 85 96 14 22 31 17 20 10 Regions Visited 18 Branch Regions 6 Pre-discovered Areas . | . . . . . . . . . . . . . . . . . . . Known Exits Taken 12 | . 1 1 1 . . . 1 . . 1 1 1 1 1 1 1 1 . Unknown Exits Taken 4 | 1 . . . 1 1 1 . . . . . . . . . . . . Scrap Searched 15 | . . 2 . 1 . . . . . . 1 11 . . . . . . Spaces Dug 42 | . . . . . . . 5 . . . . . . . 37 . . . Terrain Destroyed 215 | . . . . . . 5 51 51 . 11 35 1 . . 37 . . 24 Melee . | . . . . . . . . . . . . . . . . . . . Projectile 64 | . . . . . . 5 30 . . 11 17 1 . . . . . . AOE 151 | . . . . . . . 21 51 . . 18 . . . 37 . . 24 Terrain Rammed . | . . . . . . . . . . . . . . . . . . . Walls Destroyed . | . . . . . . . . . . . . . . . . . . . Machines Disabled . | . . . . . . . . . . . . . . . . . . . Actions | -11 -10 -10 -9 -9 -9 -8 -8 -7 -7 -7 -7 -7 -6 -5 -4 -3 -2 -1 --------- Run | Jun Mat Min Mat Min Exi Min Mat Fac Was Fac Low Low Fac Fac Fac Res Res Acc Total 14064 | 33 1301 681 1192 266 268 652 1101 968 216 902 929 1020 629 1337 967 670 639 293 Wait 1136 | . 64 10 177 17 . 7 192 131 . 115 1 18 89 179 64 69 3 . Move 11699 | 22 1113 616 849 223 266 572 758 725 201 690 901 934 491 1087 837 571 568 275 Hop 21 | . . . . . . . . . . . . . . 1 6 6 7 1 Pick Up 176 | 2 22 8 30 1 1 8 30 14 1 23 4 14 4 7 3 1 3 . Fast Attach 110 | 2 2 . 3 1 . 1 7 3 5 21 2 2 10 15 16 10 9 1 Attach 71 | . 3 1 5 . . 10 13 6 4 4 . 6 2 2 5 2 3 5 Detach 32 | 1 . . . 1 . . 3 . . 8 1 . 3 2 5 3 4 1 Swap 128 | 2 15 13 22 7 . 6 4 11 1 13 3 11 6 4 9 . 1 . Drop 188 | 1 16 9 22 3 1 . 32 9 2 11 . 17 24 22 11 2 5 1 Fire 242 | 3 64 4 2 . . 35 62 34 . 13 17 1 . . 3 . . 4 Melee 218 | . . 20 82 13 . 13 . 34 2 . . 17 . 18 8 6 . 5 Ram 2 | . 1 . . . . . . 1 . . . . . . . . . . Kick . | . . . . . . . . . . . . . . . . . . . Crush 5 | . 1 . . . . . . . . 4 . . . . . . . . Escape Stasis 36 | . . . . . . . . . . . . . . . . . 36 . Rewire . | . . . . . . . . . . . . . . . . . . . Trap . | . . . . . . . . . . . . . . . . . . . Miscellaneous . | . . . . . . . . . . . . . . . . . . . Route ------- -11/Junkyard -10/Materials (discovered 5 exits: *Mat x3 / *Min x2) -10/Mines (discovered 2 exits: *Mat x2) -9/Materials (discovered 4 exits: *Mat x2 / *Min x2) -9/Mines (discovered 2 exits: *Mat / *Exi) -9/Exiles (discovered 2 exits: [*Min x2]) -8/Mines -8/Materials -7/Factory -7/Waste -7/Factory (discovered 5 exits: *Fac / Sto x2 / *Low x2) -7/Lower Caves -7/Lower Caves (discovered 2 exits: *Fac / *Zio) -6/Factory (discovered 5 exits: *Fac / Low x2 / Ext x2) -5/Factory -4/Factory (discovered 3 exits: *Res / Upp x2) -3/Research (discovered 4 exits: *Res / Arm / *Tes x2) -2/Research (discovered 3 exits: *Acc x3) -1/Access History --------- Turn | Location | Event 8 | -11/Junkyard | Discovered new exit (range 2) 55 | -11/Junkyard | Entered Materials 160 | -10/Materials | Identified exit to Mines 284 | -10/Materials | Discovered new exit (range 10) 302 | -10/Materials | Build established: Mutant 530 | -10/Materials | Discovered new exit (range 14) 874 | -10/Materials | Discovered new exit (range 11) 888 | -10/Materials | Identified exit to Materials 1810 | -10/Materials | Entered Mines 1878 | -10/Mines | Met a Derelict shopkeep closing up shop 1884 | -10/Mines | Met a Derelict bent on vengeance 2060 | -10/Mines | Discovered exit to Materials (range 11) 2082 | -10/Mines | Core integrity fell below 50% 2243 | -10/Mines | Excavation squad dispatched 2243 | -10/Mines | A large section of the Mines collapsed 2275 | -10/Mines | Learned Materials stockpile data 2417 | -10/Mines | Found a damaged Exp. Sensor Array with a note attached 2419 | -10/Mines | Found Prototype Device 2420 | -10/Mines | Identified Exp. Sensor Array 2521 | -10/Mines | Discovered exit to Materials (range 5) 2712 | -10/Mines | Entered Materials 2712 | -9/Materials | Evolved 2 slots: Propulsion x1, Utility x1 3161 | -9/Materials | Repaired Hardlight Generator 3200 | -9/Materials | Repaired Adv. Treads 3723 | -9/Materials | Discovered new exit (range 15) 3757 | -9/Materials | Identified exit to Mines 3835 | -9/Materials | Discovered new exit (range 10) 4103 | -9/Materials | Discovered new exit (range 12) 4487 | -9/Materials | Entered Mines 4783 | -9/Mines | Discovered new exit (range 11) 4879 | -9/Mines | Deemed a non-threat by the Exiles lab entrance 4879 | -9/Mines | Discovered new exit (range 5) 4885 | -9/Mines | Entered Exiles 4906 | -9/Exiles | Discovered new exit (range 15) 4922 | -9/Exiles | Met 8R-AWN 4946 | -9/Exiles | Met EX-HEX 4986 | -9/Exiles | Met EX-BIN 5006 | -9/Exiles | Aligned with FarCom system 5007 | -9/Exiles | Given EX-Vault access code 5041 | -9/Exiles | Opened EX-Vault 5054 | -9/Exiles | Found Latent Energy Streamer 5086 | -9/Exiles | Warned to stay clear of 0b10 Research branches 5199 | -9/Exiles | Met EX-DEC 5254 | -9/Exiles | Discovered new exit (range 14) 5273 | -9/Exiles | Left Exiles lab with Latent Energy Streamer 5273 | -9/Exiles | Entered Mines 5284 | -8/Mines | Core integrity fell below 50% 5334 | -8/Mines | Lost 4 parts (1p1n1u1w) 5471 | -8/Mines | Core integrity fell below 20% 5519 | -8/Mines | Destroyed 8 combat bots 5526 | -8/Mines | Lost 5 parts (1p3n1u) 5743 | -8/Mines | Build established: Skirmisher 6329 | -8/Mines | Discovered new exit (range 8) 6342 | -8/Mines | Entered Materials 6342 | -8/Materials | Evolved 2 slots: Propulsion x1, Utility x1 7236 | -8/Materials | Build established: Mutant 7944 | -8/Materials | Discovered new exit (range 4) 7974 | -8/Materials | Identified exit to Factory 7975 | -8/Materials | Entered Factory 7975 | -7/Factory | Evolved 2 slots: Propulsion x1, Weapon x1 8332 | -7/Factory | Build established: Skirmisher 8754 | -7/Factory | Fabricated Imp. Cesium-ion Thruster? 8963 | -7/Factory | Destroyed 9 combat bots 9037 | -7/Factory | Garrison activated, responded to threat 9158 | -7/Factory | Build established: Mutant 9280 | -7/Factory | Sucked down chute 9280 | -7/Factory | Entered Waste 9281 | -7/Waste | Met a frightened Derelict 9290 | -7/Waste | Spotted C-40 Crusher 9292 | -7/Waste | Spotted C-40 Crusher 9295 | -7/Waste | EMP discharged 9295 | -7/Waste | System corruption reached 10% 9304 | -7/Waste | Spotted C-40 Crusher 9325 | -7/Waste | Spotted C-40 Crusher 9333 | -7/Waste | Spotted C-40 Crusher 9356 | -7/Waste | Crushed by Compactor (1 part destroyed, 1 dropped) 9360 | -7/Waste | Crushed by Compactor (1 part destroyed, 1 dropped) 9363 | -7/Waste | Crushed by Compactor (1 part destroyed, 2 dropped) 9366 | -7/Waste | Crushed by Compactor (1 part destroyed, 1 dropped) 9373 | -7/Waste | Crushed by Compactor (1 part destroyed, 1 dropped) 9395 | -7/Waste | EMP discharged 9404 | -7/Waste | Lost 6 parts (4n1u1w) 9426 | -7/Waste | Crushed by Compactor (1 part destroyed, 1 dropped) 9427 | -7/Waste | Core integrity fell below 50% 9432 | -7/Waste | Crushed by Compactor (1 part destroyed, 1 dropped) 9463 | -7/Waste | Lost 3 parts (2n1w) 9467 | -7/Waste | Spotted C-40 Crusher 9467 | -7/Waste | Discovered new exit (range 11) 9474 | -7/Waste | Identified exit to Factory 9478 | -7/Waste | Entered Factory 9622 | -7/Factory | Repaired Hvy. Treads 9986 | -7/Factory | Identified exit to Storage 9986 | -7/Factory | Identified exit to Lower Caves 10044 | -7/Factory | Allied Derelicts emerged from ambush trap array 10082 | -7/Factory | Discovered new exit (range 8) 10094 | -7/Factory | Build established: Tank 10424 | -7/Factory | Build established: Scavenger-Skirmisher 10715 | -7/Factory | Repaired Hvy. Assault Cannon 10968 | -7/Factory | Entered Lower Caves 11266 | -7/Lower Caves | Build established: Tank 11418 | -7/Lower Caves | Encountered a Warlord checkpoint 11901 | -7/Lower Caves | Learned location of 2 exits from Factory 11950 | -7/Lower Caves | Build established: Mutant 11985 | -7/Lower Caves | Discovered new exit (range 15) 12173 | -7/Lower Caves | Identified exit to Lower Caves 13190 | -7/Lower Caves | Entered another Lower Caves area 13748 | -7/Lower Caves | Core integrity fell below 20% 14215 | -7/Lower Caves | Discovered new exit (range 7) 14226 | -7/Lower Caves | Identified exit to Zion 14248 | -7/Lower Caves | Learned 8 Factory zone layouts 14280 | -7/Lower Caves | Learned location of 1 exit from Factory 14940 | -7/Lower Caves | Discovered new exit (range 12) 14954 | -7/Lower Caves | Identified exit to Factory 14990 | -7/Lower Caves | Entered Factory 14990 | -6/Factory | Evolved 2 slots: Power x1, Propulsion x1 14991 | -6/Factory | Identified exit to Lower Caves 14991 | -6/Factory | Identified exit to Extension 15286 | -6/Factory | Discovered new exit (range 15) 15293 | -6/Factory | Identified exit to Factory 15298 | -6/Factory | Entered another Factory area 15298 | -5/Factory | Evolved 2 slots: Propulsion x1, Utility x1 15362 | -5/Factory | Build established: Sprinter 15478 | -5/Factory | Fabricated Imp. Cesium-ion Thruster (x1) 15654 | -5/Factory | Discovered new exit (range 11) 15674 | -5/Factory | Identified exit to Factory 15812 | -5/Factory | Entered another Factory area 15812 | -4/Factory | Evolved 2 slots: Utility x2 15884 | -4/Factory | Identified exit to Upper Caves 15989 | -4/Factory | Repaired Xenon Bombardment Thruster 16030 | -4/Factory | Lost 6 parts (1p3n1u1w) 16104 | -4/Factory | Lost 6 parts (1p2n1u2w) 16129 | -4/Factory | Mak. Hacking Suite fried by hacking feedback 16192 | -4/Factory | Discovered new exit (range 16) 16197 | -4/Factory | Identified exit to Research 16197 | -4/Factory | Entered Research 16197 | -3/Research | Evolved 2 slots: Utility x2 16226 | -3/Research | Identified exit to Armory 16226 | -3/Research | Identified exit to Testing 16403 | -3/Research | Found Prototype Launcher 16403 | -3/Research | Identified Adv. Micro-nuke Launcher 16491 | -3/Research | Build established: Infiltrator-Mutant 16516 | -3/Research | Discovered new exit (range 12) 16522 | -3/Research | Identified exit to Research 16525 | -3/Research | Entered another Research area 16525 | -2/Research | Evolved 2 slots: Utility x2 16537 | -2/Research | Found Prototype Processor 16537 | -2/Research | Identified Exp. Signal Interpreter 16624 | -2/Research | Identified exit to Access 16784 | -2/Research | Entered Access 16784 | -1/Access | Evolved 2 slots: Utility x2 16904 | -1/Access | System corruption reached 10% 16914 | -1/Access | Core integrity fell below 50% 16923 | -1/Access | Core integrity fell below 20% 16928 | -1/Access | Destroyed by P-80 Master with Gamma Rifle Last Messages --------------- 16916_ Slug penetrates Repair Station. 16917_ Penetrated by Slug. 16920_ Slug penetrates Earth. 16920_ Penetrated by Slug. 16920_ Slug penetrates H-88 Terminator. 16920_ Slug penetrates Wall. 16922_ Destroyed Unknown Storage. 16923_ Penetrated by Slug. 16923_ Slug penetrates Wall. 16923_ Penetrated by Slug. 16923_ Slug penetrates Wall. 16923_ M-36 Artificer repairs H-88 Terminator. 16925_ M-36 Artificer fits Backup Plating VII on H-88 Terminator. 16926_ SZ 4IL=VYJUI8U%E>SSS3JH4# 16926_ Penetrated by Slug. 16926_ Slug penetrates Wall. 16926_ Lance destroyed. 16927_ Penetrated by Slug. 16927_ Acquired 21 matter. [Achievement: Achiever] Map ----- +----------------------------------------------------+ | ##### # #?#?????????????????????? | | ????# # ##??????????????????????? | | ????# ###############??????????????????????? | | ????# #??##?????#?#?#??????????????????????? | | ??#?# ##??##??? ??? ???????????????????? | | ????# #?????#? ? ?????????????????????????? | | ?#??# ########?? ? ? ? ???????????????????? | | #???# #? "?? ??????????????????????? | | ???## # ?"?" ???????????????????????? | | ??#?# #???? ???????????????????????? | | #???# # ??? ?? ????????????????????? | | ????# #? ?? ???????????????????????? | | ???## ######;#######????????????????? | | ????# #! #????????????????? | | ????########### #### #????????????????? | | ??????????#??## #??# "" #????????????????? | | ??#????###?##?# #??# """ #????????????????? | | ??????????????# #??# "R #????????????????? | | ??????#??????## #??# """ #????????????????? | | ??????#???????# #??# """ #????????????????? | | ???##????#??### #?## #????????????????? | | ??#?##???????## #?# #?#??????????????? | | ??????????????# #?# ##???????h???????? | | ???####?#?????# #?## p #???????????????? | | ??????????????# #?# % m ##???????h???????? | | ???????????#??# #########@ ##??????w?????????? | | ??????????????# ! u h h ?????????? | | ????#????????## u ????????? | | ????#?? ? ????# h ?????????? | | ????????????? # ?????????? | | ???#?#???????? R ?????????? | | ??????????????# ?????????? | | ?????#? ?? ???# =% ?????????? | | ?????# ???? ?" ! #+#############??????????? | | ?????? ? ????"# ???????????????????????? | | ??????????? ??# ???? ??????????????????? | | ????????????"? %=#u?????????????????????????? | | ??????????????# # ?????????????????????????? | | ??????????????# # ????? ???????????????????? | | ??????????????# #?? ???????????????????????? | | ?????????????"# #??????????????????????????? | | ??????????????? ???????????????????????????? | | ??????????????????? ?????????????????????????????? | | ?????????????????????????????????????????????????? | | ?????????????????????????????????????????????????? | | ?????????????????????????????????????????????????? | | ?????????????????????????????????????????????????? | | ?????????????????????????????????????????????????? | | ?????????????????????????????????????????????????? | | ?????????????????????????????????????????????????? | +----------------------------------------------------+ Best States ------------- Heat Dissipation 70 Coolant Potential 120 Energy Generation 35 Energy Capacity 490 Matter Stores 300 Matter Capacity 300 Sight Range 20 Robot Scan Range 20 Terrain Scan Range 16 Terrain Scan Density 210 ECM Strength 2 Jamming Range 16 Power Amplification 20 Additional Mass Support 9 Corruption Block 8 Armor Coverage 600 Resistance: KI 25 Propulsion Shielding 66 Utility Shielding 66 Melee Speed Boost 20 Evasion (%) 75 Recoil Reduction 5 Energy Filtering 30 Salvage Targeting 1 Offensive Hacking 25 Item Schematics ----------------- Hvy. Flail | -9/Materials | Scanalyzed Imp. Flight Unit | -9/Materials | Scanalyzed Arm. Wheel | -9/Materials | Hacked Imp. Cesium-ion Thruster | -7/Factory | Scanalyzed Hvy. Assault Cannon | -7/Factory | Scanalyzed Mic. Nuclear Core | -7/Factory | Scanalyzed Arm. Huge Wheel | -7/Factory | Scanalyzed Lgt. Treads | -7/Factory | Scanalyzed Imp. Propulsion Shielding | -5/Factory | Hacked Robot Schematics ------------------ None Fabricated ------------ Imp. Cesium-ion Thruster | x1 | -7/Factory Imp. Cesium-ion Thruster | x1 | -5/Factory Alien Tech Used ----------------- None Achievements -------------- Achiever Can't Catch Me Cya! Dangerous Findings Denied? Dodgeball, But With Guns Knowing Is Half The Battle Omniscient Cartographer Ooh, Shiny! Oops Prolific Hacker Slippery One Universal Adapter Use The Force root@ Challenges ------------ None Game ------ Seed ShieldGhostClaws Manual? 0 Play Time 04:35:49 Cumulative 31.7 hours Start 2024.02.16 @ 00:32:39 End 2024.02.18 @ 04:05:31 Sessions 4 Manual Loads 0 Difficulty Rogue Special Mode None Game No. 15 Rogue 15 Adventurer 0 Explorer 0 Win Type - Total 0 Types 0/0/0/0/0/0/0/0/0 Lore% 22 Gallery% 31 Achievement% 27 Wizard Run 0 Options --------- ASCII 0 Keyboard 0 Movement Numpad Keybinds 0 Fullscreen 2 Font 18/SmallcapsGlow Map View 76x50 Tactical HUD 1 Map Filters NONE Filters NONE Steam 1 RUN: ed7aa999-6e7b-4bbf-a3dd-65173453c684